bitfinex-derivatives/quotes_SOLF0:USTF0_20251229
["timestamp","ask_amount","ask_price","bid_price","bid_amount"]
[1767008830775,9.88325551,125.27,125.25,0.00472585]
[1767008831077,3.43,125.25,125.17,3.3]
[1767008831273,3.43,125.24,125.17,3.3]
[1767008831673,3.43,125.24,125.19,7.1975]
[1767008832070,0.05426836,125.23,125.2,0.05670107]
[1767008835180,3.48426836,125.23,125.2,0.05670107]
[1767008836885,3.39,125.22,125.2,0.05670107]
[1767008838396,3.39,125.22,125.16,3.19]
[1767008839289,3.4419718,125.2,125.18,0.05839612]
[1767008842292,0.0519718,125.2,125.18,0.05839612]
[1767008846497,3.39,125.23,125.18,3.24839612]
[1767008846797,3.39,125.25,125.18,3.24839612]
[1767008847594,0.05993952,125.23,125.18,3.24839612]
[1767008848497,0.05993952,125.23,125.19,2.38436625]
[1767008848688,0.05993952,125.23,125.2,7.1968]
[1767008853204,3.44993952,125.23,125.18,7.25599612]
[1767008858111,3.44993952,125.23,125.18,10.44599612]
[1767008858314,0.05993952,125.23,125.19,10.3871]
[1767008863411,0.05993952,125.23,125.2,10.3869]
[1767008863716,3.39,125.28,125.21,3.19]
[1767008864410,10.5824,125.28,125.22,7.1957]
[1767008864613,0.05685616,125.26,125.24,0.05681984]
[1767008868306,10.4315,125.3,125.24,3.47681984]
[1767008868511,3.24,125.29,125.24,3.47681984]
[1767008869413,0.05953645,125.28,125.24,3.47681984]
[1767008872918,0.05953645,125.28,125.24,10.67121984]
[1767008873521,0.05953645,125.28,125.24,3.47681984]
[1767008879910,3.26953645,125.28,125.24,0.05681984]
[1767008882214,3.21,125.27,125.21,7.1963]
[1767008883119,0.05027913,125.25,125.23,0.05494846]
[1767008885923,3.26027913,125.25,125.23,0.00494846]
[1767008886927,10.45457913,125.25,125.23,0.00494846]
[1767008890935,3.26027913,125.25,125.23,0.00494846]
[1767008903044,0.00027913,125.25,125.23,3.30494846]
[1767008903239,9.93202938,125.3,125.23,3.30494846]
[1767008903436,9.93202938,125.3,125.23,3.3]
[1767008903643,20.51272938,125.31,125.25,3.3]
[1767008904247,0.05040239,125.29,125.27,0.05868506]
[1767008905040,0.00040239,125.29,125.27,3.35868506]
[1767008908455,0.00040239,125.29,125.27,0.05868506]
[1767008919274,0.00040239,125.29,125.27,3.35868506]
[1767008920371,1.38941569,125.36,125.29,3.3]
[1767008921269,4.77941569,125.36,125.29,3.3]
[1767008921574,0.06009316,125.34,125.31,0.05053613]
[1767008925072,0.06009316,125.34,125.31,10.54113613]
[1767008925279,0.06009316,125.34,125.32,3.3]
[1767008925470,0.06009316,125.34,125.31,0.05053613]
[1767008932478,0.06009316,125.34,125.31,3.23053613]
[1767008937695,0.06009316,125.34,125.31,10.42093613]
[1767008938086,3.35,125.37,125.31,10.42093613]
[1767008938286,6.05479395,125.38,125.32,3.49]
[1767008938486,4.73899976,125.39,125.33,3.49]
[1767008939194,0.05524569,125.37,125.35,0.05707223]
[1767008940190,4.73899976,125.39,125.35,0.05707223]
[1767008941397,0.05034525,125.38,125.35,0.05707223]
[1767008943095,0.05034525,125.38,125.35,3.54707223]
[1767008943996,7.1858,125.4,125.35,3.54707223]
[1767008944494,10.5349,125.41,125.35,3.54707223]
[1767008944695,3.35,125.43,125.36,3.49]
[1767008945096,0.05104585,125.41,125.38,0.05766314]
[1767008946197,0.05104585,125.41,125.38,3.54766314]
[1767008946393,0.00104585,125.41,125.38,3.54766314]
[1767008947394,0.00104585,125.41,125.38,10.73426314]
[1767008951901,3.35104585,125.41,125.35,3.46]
[1767008952205,3.35,125.38,125.3,3.46]
[1767008952902,3.35,125.38,125.33,0.05993386]
[1767008953206,0.05320505,125.35,125.33,0.05993386]
[1767008954097,3.35,125.38,125.33,3.46993386]
[1767008954303,104.8758,125.4,125.33,3.46993386]
[1767008955205,0.05902229,125.38,125.33,3.46993386]
[1767008955597,0.05902229,125.38,125.33,10.65943386]
[1767008956897,0.05902229,125.38,125.33,3.46993386]
[1767008959305,0.05902229,125.38,125.33,0.05993386]
[1767008959306,3.16,125.37,125.33,0.05993386]
[1767008960807,10.3473,125.37,125.33,0.05993386]
[1767008970614,12.72804476,125.37,125.33,0.05993386]
[1767008971106,3.16,125.35,125.29,10.5516]
[1767008971310,5.54074476,125.35,125.29,10.5516]
[1767008971514,3.16,125.35,125.29,10.5516]
[1767008972215,0.05368424,125.33,125.31,0.05644517]
[1767008977619,0.05368424,125.33,125.28,101.5319]
[1767008977819,0.05368424,125.33,125.24,118.9113]
[1767008977820,3.21368424,125.33,125.26,3.36]
[1767008978018,3.16,125.33,125.26,3.36]
[1767008978619,10.3497,125.33,125.26,10.553]
[1767008978822,0.0559039,125.31,125.28,0.05567373]
[1767008999753,3.16,125.33,125.28,0.05567373]
[1767008999951,3.16,125.33,125.28,3.22567373]
[1767009000661,0.05766945,125.32,125.28,3.22567373]
[1767009002262,3.31766945,125.32,125.28,0.05567373]
[1767009002461,3.26,125.31,125.25,7.1937]
[1767009002658,3.26,125.31,125.24,3.17]
[1767009002866,3.26,125.29,125.22,3.17]
[1767009003459,0.05391485,125.27,125.24,0.05331266]
[1767009011165,0.00391485,125.27,125.25,3.17]
[1767009056601,0.00391485,125.27,125.25,10.3638]
[1767009057605,0.00391485,125.27,125.26,3.32]
[1767009065610,0.00391485,125.27,125.24,3.37331266]
[1767009066914,0.00391485,125.27,125.25,3.32]
[1767009073516,0.00391485,125.27,125.24,0.05331266]
[1767009078322,3.37,125.26,125.19,3.33]
[1767009078512,3.37,125.25,125.19,3.33]
[1767009078918,13.30202938,125.25,125.19,3.33]
[1767009079314,0.05569694,125.23,125.21,0.0553168]
[1767009086825,3.37,125.27,125.21,3.3853168]
[1767009087309,9.93202938,125.28,125.21,3.3853168]
[1767009087514,97.81,125.29,125.21,3.3853168]
[1767009087821,97.81,125.29,125.24,0.05789256]
[1767009087822,0.05844294,125.26,125.24,0.05789256]
[1767009095123,94.44,125.29,125.24,3.38789256]
[1767009095322,3.37,125.29,125.24,3.38789256]
[1767009096225,0.06091197,125.28,125.24,3.38789256]
[1767009097029,0.00091197,125.28,125.25,3.33]
[1767009097728,0.00091197,125.28,125.25,10.524]
[1767009098125,0.00091197,125.28,125.26,3.33]
[1767009101730,0.00091197,125.28,125.24,3.38789256]
[1767009110843,0.00091197,125.28,125.24,10.58249256]
[1767009112243,0.00091197,125.28,125.24,3.38789256]
[1767009117041,0.00091197,125.28,125.24,10.58239256]
[1767009122151,2.38460921,125.28,125.24,0.05789256]
[1767009122345,3.5,125.27,125.24,0.05789256]
[1767009126954,0.00091197,125.28,125.24,3.31789256]
[1767009128563,0.00091197,125.28,125.24,10.51229256]
[1767009128764,0.00091197,125.28,125.25,3.26]
[1767009134664,0.00091197,125.28,125.26,3.26]
[1767009135465,13.43202938,125.32,125.26,3.26]
[1767009136466,0.06094912,125.3,125.28,0.06023996]
[1767009138968,3.18,125.37,125.29,96.80369724]
[1767009139870,0.05531602,125.34,125.32,0.06119618]
[1767009143969,3.18,125.39,125.32,7.25109618]
[1767009144172,5.56369724,125.39,125.29,206.2851]
[1767009144364,3.18,125.38,125.3,94.4]
[1767009144567,5.56369724,125.38,125.3,94.4]
[1767009144766,3.18,125.37,125.3,94.4]
[1767009144972,0.05413974,125.35,125.32,0.05711069]
[1767009150278,3.23413974,125.35,125.32,0.05711069]
[1767009150669,3.23413974,125.35,125.29,7.1917]
[1767009151779,3.23413974,125.35,125.31,0.0591726]
[1767009159586,3.23413974,125.35,125.31,7.2492726]
[1767009160080,0.05413974,125.35,125.32,7.1899]
[1767009160287,4.5690552,125.39,125.31,111.9112726]
[1767009160485,4.5690552,125.39,125.31,111.8521]
[1767009160680,4.5690552,125.39,125.32,94.38]
[1767009161187,0.05078258,125.37,125.34,0.05460952]
[1767009161682,0.05078258,125.37,125.34,7.24330952]
[1767009162282,1.3890552,125.39,125.35,7.1882]
[1767009162986,3.18,125.41,125.35,7.1882]
[1767009163276,0.05402368,125.39,125.37,0.05940354]
[1767009163585,3.23402368,125.39,125.35,7.1882]
[1767009164378,3.23402368,125.39,125.36,0.06024614]
[1767009181098,3.23402368,125.39,125.34,94.34]
[1767009181797,0.05402368,125.39,125.34,94.34]
[1767009181997,0.05402368,125.39,125.35,0.05904985]
[1767009182792,3.37402368,125.39,125.35,0.05904985]
[1767009190507,3.37402368,125.39,125.35,7.24734985]
[1767009190708,0.05402368,125.39,125.35,7.24734985]
[1767009191304,3.37402368,125.39,125.35,7.24734985]
[1767009196121,0.05402368,125.39,125.35,7.24734985]
[1767009196321,0.05402368,125.39,125.36,7.1877]
[1767009200326,1.38863949,125.42,125.36,7.1877]
[1767009200824,4.72863949,125.42,125.36,7.1877]
[1767009201024,4.72863949,125.42,125.37,7.1869]
[1767009201228,0.06033082,125.41,125.38,0.05333375]
[1767009201726,0.06033082,125.41,125.38,94.39333375]
[1767009202626,0.06033082,125.41,125.38,101.57963375]
[1767009207829,3.40033082,125.41,125.38,101.57963375]
[1767009208037,3.40033082,125.41,125.35,94.34]
[1767009209033,3.40033082,125.41,125.37,0.0592534]
[1767009220644,3.40033082,125.41,125.37,2.43773314]
[1767009225242,3.40033082,125.41,125.37,0.0592534]
[1767009230039,3.40033082,125.41,125.37,7.2461534]
[1767009233358,3.40033082,125.41,125.38,7.1865]
[1767009234552,3.41,125.43,125.39,7.1858]
[1767009235547,0.05306639,125.42,125.4,0.05476983]
[1767009237953,3.46306639,125.42,125.4,0.00476983]
[1767009244158,3.41,125.43,125.4,0.00476983]
[1767009245259,3.46745282,125.43,125.4,0.00476983]
[1767009251172,3.46745282,125.43,125.4,7.19016983]
[1767009251173,0.05745282,125.43,125.4,7.19016983]
[1767009252163,0.05745282,125.43,125.4,0.00476983]
[1767009252374,3.41,125.45,125.41,7.1847]
[1767009252677,1.3883071,125.46,125.41,7.1847]
[1767009252876,3.41,125.46,125.42,7.1842]
[1767009253371,0.06086684,125.45,125.43,0.0604394]
[1767009253875,0.06086684,125.45,125.43,7.2441394]
[1767009255375,3.47086684,125.45,125.43,0.0004394]
[1767009261585,3.47086684,125.45,125.42,7.1843]
[1767009261586,3.24,125.44,125.36,2.37847974]
[1767009262588,0.05171864,125.41,125.39,0.06094833]
[1767009275905,0.05171864,125.41,125.34,111.8193]
[1767009275906,3.29171864,125.41,125.34,111.8193]
[1767009276195,3.29171864,125.41,125.34,208.51777974]
[1767009276590,3.29171864,125.41,125.34,206.1393]
[1767009276999,3.29171864,125.41,125.36,0.0572332]
[1767009278607,3.29171864,125.41,125.37,7.1871]
[1767009300523,3.29171864,125.41,125.37,10.6671]
[1767009305515,3.29171864,125.41,125.36,0.0572332]
[1767009305728,13.02982378,125.39,125.34,3.48]
[1767009306831,0.05422865,125.38,125.35,0.05612395]
[1767009308619,0.05422865,125.38,125.35,7.24442395]
[1767009311629,3.20422865,125.38,125.35,0.05612395]
[1767009311820,3.20422865,125.38,125.31,97.82]
[1767009312025,3.15,125.37,125.32,3.48]
[1767009312537,3.15,125.37,125.32,10.67]
[1767009312827,3.15,125.37,125.33,0.05138017]
[1767009322939,3.15,125.37,125.33,0.00138017]
[1767009323139,3.15,125.37,125.29,3.58372]
[1767009323444,3.44,125.36,125.29,3.58372]
[1767009324038,0.0596199,125.34,125.31,0.0533999]
[1767009325343,3.4996199,125.34,125.29,0.27372]
[1767009326540,3.4996199,125.34,125.3,0.060831]
[1767009333362,3.4996199,125.34,125.26,7.02700036]
[1767009333552,3.44,125.34,125.27,3.31]
[1767009333754,3.44,125.34,125.27,10.5025]
[1767009334256,0.05371527,125.32,125.29,0.0548104]
[1767009334463,0.05371527,125.32,125.29,0.05563053]
[1767009359485,13.04982378,125.35,125.3,3.49]
[1767009359982,3.17,125.35,125.3,3.49]
[1767009360578,0.0612213,125.34,125.3,10.681]
[1767009369295,9.94104508,125.34,125.3,10.681]
[1767009369883,9.87982378,125.33,125.3,10.681]
[1767009371895,9.87982378,125.33,125.3,3.49]
[1767009372699,9.87982378,125.33,125.29,7.24733053]
[1767009374203,9.87982378,125.33,125.29,0.05563053]
[1767009374391,9.87982378,125.32,125.29,0.05563053]
[1767009377198,9.87982378,125.32,125.29,7.24733053]
[1767009377395,9.87982378,125.33,125.29,7.24733053]
[1767009379911,14.88981731,125.34,125.29,7.24733053]
[1767009379912,9.94104508,125.34,125.29,7.24733053]
[1767009383018,9.94104508,125.34,125.3,7.1911]
[1767009389817,9.87982378,125.33,125.3,7.1911]
[1767009394222,9.87982378,125.33,125.29,0.05563053]
[1767009397826,9.87982378,125.32,125.28,7.1919]
[1767009398025,9.87982378,125.3,125.23,2.3816706]
[1767009398222,9.87982378,125.29,125.23,2.3816706]
[1767009398426,14.82859601,125.31,125.23,2.3816706]
[1767009398427,9.87982378,125.3,125.23,2.3816706]
[1767009398726,14.82859601,125.31,125.22,111.9324]
[1767009398727,9.87982378,125.29,125.22,111.9324]
[1767009398916,0.05539892,125.27,125.24,0.05364312]
[1767009399824,0.05539892,125.27,125.25,7.194]
[1767009408238,0.05539892,125.27,125.24,0.05364312]
[1767009410135,9.87982378,125.31,125.24,0.05364312]
[1767009410331,9.87982378,125.33,125.25,210.03146186]
[1767009410535,9.87982378,125.34,125.25,210.03146186]
[1767009411140,0.05667981,125.31,125.28,0.0564618]
[1767009411535,0.05667981,125.31,125.28,7.2487618]
[1767009417335,0.05667981,125.31,125.29,7.1915]
[1767009445961,0.05667981,125.31,125.28,0.0564618]
[1767009453560,0.05667981,125.31,125.28,7.2487618]
[1767009459773,9.93650359,125.31,125.28,7.2487618]
[1767009461686,9.87982378,125.3,125.28,0.0564618]
[1767009461988,9.87982378,125.29,125.24,96.78182011]
[1767009462187,9.87982378,125.3,125.25,7.1935]
[1767009462787,0.0535131,125.29,125.26,7.25283613]
[1767009464883,9.87982378,125.28,125.2,114.32782011]
[1767009465185,9.87982378,125.28,125.2,208.72782011]
[1767009465387,9.87982378,125.27,125.2,206.346]
[1767009465689,9.87982378,125.27,125.2,208.72782011]
[1767009465891,0.05905288,125.25,125.22,0.06006422]
[1767009466392,0.05905288,125.25,125.23,7.1952]
[1767009469587,9.87982378,125.28,125.24,7.1946]
[1767009469788,12.26164389,125.29,125.24,7.1946]
[1767009470584,0.05447846,125.28,125.25,0.05403013]
[1767009473595,2.38182011,125.27,125.21,7.1959]
[1767009474298,2.38182011,125.25,125.2,7.1969]
[1767009474492,0.06042189,125.24,125.21,0.05241985]
[1767009481996,0.06042189,125.24,125.17,2.38182011]
[1767009482707,0.06042189,125.24,125.19,7.1974]
[1767009483007,2.442242,125.24,125.2,0.06024665]
[1767009484105,2.38182011,125.22,125.13,208.85602011]
[1767009484302,2.38182011,125.24,125.16,2.38182011]
[1767009485307,0.05536595,125.21,125.19,0.05511243]
[1767009487000,0.05536595,125.21,125.13,208.85602011]
[1767009487200,9.87982378,125.25,125.13,208.85602011]
[1767009487405,2.38182011,125.22,125.13,208.85602011]
[1767009487709,2.38182011,125.22,125.13,114.39602011]
[1767009488016,118.49419635,125.28,125.11,206.4884]
[1767009488017,2.38182011,125.2,125.11,206.4884]
[1767009488200,0.06053613,125.19,125.11,208.87022011]
[1767009488397,0.05076923,125.16,125.14,0.053015]
[1767009489413,9.87982378,125.23,125.14,0.053015]
[1767009489414,2.38182011,125.21,125.14,0.053015]
[1767009489710,2.38182011,125.21,125.14,7.1998]
[1767009490210,0.05974541,125.19,125.16,0.05231406]
[1767009499308,2.38182011,125.24,125.16,0.05231406]
[1767009499514,2.38182011,125.24,125.14,114.38622011]
[1767009499906,9.87982378,125.27,125.15,111.9969]
[1767009500109,0.05123771,125.22,125.2,0.05086184]
[1767009500309,0.05211041,125.22,125.2,0.05086184]
[1767009500611,2.38182011,125.27,125.2,7.24776184]
[1767009501014,2.38182011,125.28,125.2,7.24776184]
[1767009501209,2.38182011,125.28,125.2,7.1969]
[1767009501415,0.05199103,125.25,125.23,0.0555346]
[1767009510520,0.05199103,125.25,125.2,7.1969]
[1767009510818,0.05199103,125.25,125.18,7.1975]
[1767009511023,9.93181481,125.25,125.18,7.1975]
[1767009511220,9.87982378,125.24,125.18,7.1975]
[1767009511608,0.05285116,125.22,125.2,0.05285154]
[1767009515522,9.87982378,125.21,125.14,2.38182011]
[1767009515717,9.87982378,125.21,125.13,112.0096]
[1767009515917,9.87982378,125.21,125.13,114.39142011]
[1767009516227,9.87982378,125.2,125.13,114.39142011]
[1767009516422,9.87982378,125.19,125.11,2.38182011]
[1767009516628,0.0608268,125.18,125.15,0.05534632]
[1767009521235,77.45990628,125.51,125.15,0.05534632]
[1767009521236,24.70841979,125.28,125.19,111.9614]
[1767009521534,24.70841979,125.28,125.18,111.9655]
[1767009521535,9.87982378,125.28,125.18,111.9655]
[1767009521942,9.87982378,125.27,125.19,7.1971]
[1767009522244,0.05895423,125.24,125.22,0.06043533]
[1767009522445,0.05842854,125.24,125.22,0.05936156]
[1767009525945,0.05842854,125.24,125.18,7.1978]
[1767009527049,0.05842854,125.24,125.2,0.05571957]
[1767009544364,9.93825232,125.24,125.2,0.05571957]
[1767009544660,0.05842854,125.24,125.2,0.05571957]
[1767009548266,9.93825232,125.24,125.2,0.05571957]
[1767009548463,0.05842854,125.24,125.2,0.05571957]
[1767009549169,9.93825232,125.24,125.2,0.05571957]
[1767009559870,0.05842854,125.24,125.2,0.05571957]
[1767009560070,9.87982378,125.23,125.16,7.1987]
[1767009560270,9.87982378,125.22,125.16,7.1987]
[1767009561064,0.05517556,125.2,125.18,0.05299958]
[1767009563371,9.87982378,125.23,125.18,7.25069958]
[1767009563571,9.87982378,125.24,125.18,7.25069958]
[1767009564473,0.05446876,125.22,125.18,7.25069958]
[1767009566876,9.87982378,125.24,125.18,0.05299958]
[1767009567079,9.87982378,125.24,125.19,111.9606]
[1767009567376,9.87982378,125.25,125.19,111.9606]
[1767009567579,14.82859601,125.28,125.2,111.9499]
[1767009567877,0.0543859,125.25,125.23,0.05772026]
[1767009568178,0.05567509,125.25,125.23,0.05350207]
[1767009568578,14.82859601,125.29,125.23,7.24850207]
[1767009568776,14.82859601,125.3,125.23,7.24850207]
[1767009569077,14.82859601,125.3,125.23,7.195]
[1767009569470,14.82859601,125.3,125.24,7.1943]
[1767009569671,0.05899766,125.28,125.19,115.69123397]
[1767009569870,14.82859601,125.3,125.19,115.69123397]
[1767009569871,14.82859601,125.29,125.19,111.9606]
[1767009570663,0.05656857,125.25,125.23,0.05368732]
[1767009571068,0.05656857,125.25,125.22,7.1954]
[1767009571069,0.05656857,125.25,125.16,111.983]
[1767009571280,14.82859601,125.26,125.16,111.983]
[1767009572180,0.06050966,125.22,125.2,0.05653069]
[1767009575000,18.55922998,125.27,125.2,0.05653069]
[1767009576196,0.05556634,125.25,125.2,0.05653069]
[1767009590406,0.05556634,125.25,125.2,7.25323069]
[1767009590806,17.26943659,125.25,125.2,0.05653069]
[1767009593209,2.38527424,125.23,125.17,7.1986]
[1767009594211,0.05492183,125.21,125.19,0.05954677]
[1767009598618,9.98244403,125.21,125.16,7.1988]
[1767009599615,9.98244403,125.21,125.17,0.05276537]
[1767009600215,9.98244403,125.21,125.17,7.25136537]
[1767009600715,0.05492183,125.21,125.17,7.25136537]
[1767009604822,0.05492183,125.21,125.17,0.05276537]
[1767009605017,0.05492183,125.21,125.18,2.38527424]
[1767009606223,0.05492183,125.21,125.17,2.43803961]
[1767009606721,0.05492183,125.21,125.19,7.1974]
[1767009607425,0.05492183,125.21,125.17,7.25086537]
[1767009608922,9.98244403,125.21,125.17,0.05276537]
[1767009611426,9.98244403,125.21,125.17,7.25116537]
[1767009611627,0.05492183,125.21,125.17,7.25116537]
[1767009613928,9.98244403,125.21,125.17,0.05276537]
[1767009614623,9.98244403,125.21,125.11,112.026]
[1767009614926,9.9275222,125.2,125.14,2.38527424]
[1767009615331,9.9275222,125.2,125.14,7.2003]
[1767009615729,0.05170674,125.18,125.14,7.2003]
[1767009617532,0.05170674,125.18,125.1,206.514]
[1767009617726,0.05966661,125.15,125.1,112.034]
[1767009618030,7.44738284,125.13,125.02,112.1058]
[1767009618223,9.9275222,125.13,125.04,112.0926]
[1767009618427,12.31279644,125.13,125.03,112.1043]
[1767009618626,12.31279644,125.13,125.0,112.1238]
[1767009618627,12.31279644,125.11,125.01,112.1195]
[1767009618829,9.9275222,125.13,125.02,112.1081]
[1767009619130,9.9275222,125.11,124.99,112.1387]
[1767009619336,5.82763946,125.1,125.0,112.1273]
[1767009619629,24.3896528,125.24,124.95,336.5181]
[1767009619630,5.81617695,125.11,125.02,112.1098]
[1767009619834,8.20145119,125.18,125.04,0.05134976]
[1767009620130,124.0,125.17,125.1,0.06050114]
[1767009620333,5.81617695,125.16,125.06,112.0772]
[1767009620537,5.81617695,125.18,125.09,2.38527424]
[1767009620726,3.2,125.17,125.11,3.4]
[1767009621126,0.05536442,125.15,125.13,0.05068379]
[1767009621330,3.25536442,125.15,125.13,0.00068379]
[1767009621835,0.05536442,125.15,125.13,0.00068379]
[1767009623542,97.7,125.19,125.13,0.00068379]
[1767009623543,3.2,125.19,125.13,5.78595803]
[1767009623738,3.2,125.22,125.15,2.38527424]
[1767009623941,3.2,125.22,125.17,2.38527424]
[1767009624144,3.2,125.3,125.21,2.38527424]
[1767009624348,3.2,125.3,125.21,5.78527424]
[1767009624547,3.2,125.26,125.2,5.78527424]
[1767009624749,3.2,125.28,125.21,3.4]
[1767009625653,0.05400158,125.26,125.23,0.05700392]
[1767009627748,1.44427764,125.26,125.23,0.05700392]
[1767009627932,1.44427764,125.26,125.21,3.4]
[1767009629545,3.2,125.25,125.19,3.4]
[1767009629746,0.05348087,125.23,125.19,3.4]
[1767009632348,0.05348087,125.23,125.19,97.88]
[1767009633544,0.00348087,125.23,125.2,3.4]
[1767009634540,0.00348087,125.23,125.2,3.45908144]
[1767009635144,0.00348087,125.23,125.2,97.93908144]
[1767009636337,0.00348087,125.23,125.2,3.45908144]
[1767009636541,0.00348087,125.23,125.17,9.58357424]
[1767009636542,3.20348087,125.23,125.17,3.4]
[1767009637048,0.00348087,125.23,125.17,3.4]
[1767009637650,0.00348087,125.23,125.19,3.4]
[1767009637852,0.05144802,125.22,125.19,3.4]
[1767009638044,0.00144802,125.22,125.19,3.4]
[1767009639145,0.00144802,125.22,125.19,3.45337059]
[1767009639347,0.00144802,125.22,125.19,0.05337059]
[1767009641554,3.20144802,125.22,125.15,3.4]
[1767009641752,3.20144802,125.22,125.15,97.88]
[1767009641948,3.20144802,125.22,125.15,3.4]
[1767009642747,1.39094288,125.21,125.15,3.4]
[1767009642949,0.05773838,125.19,125.15,3.4]
[1767009643642,0.05773838,125.19,125.13,3.4]
[1767009646548,1.39094288,125.21,125.13,3.4]
[1767009647660,0.05259919,125.18,125.16,0.05773838]
[1767009648453,0.00259919,125.18,125.16,0.05773838]
[1767009650755,5.80791266,125.21,125.16,3.45773838]
[1767009650960,3.46,125.24,125.17,94.5]
[1767009651160,9.8664724,125.25,125.18,3.4]
[1767009651361,13.3264724,125.26,125.18,3.4]
[1767009651758,0.05187187,125.23,125.21,0.05799852]
[1767009654560,0.05187187,125.23,125.18,3.4]
[1767009655662,0.05187187,125.23,125.19,0.05233905]
[1767009657761,0.05187187,125.23,125.19,3.45233905]
[1767009659263,0.00187187,125.23,125.19,3.45233905]
[1767009659768,0.00187187,125.23,125.2,3.19]
[1767009660271,3.21,125.28,125.21,97.67]
[1767009660565,13.0764724,125.3,125.23,3.19]
[1767009660764,3.21,125.29,125.23,3.19]
[1767009661170,0.05986878,125.27,125.23,3.19]
[1767009661469,0.05986878,125.27,125.23,97.67]
[1767009662473,13.0764724,125.31,125.24,3.24222789]
[1767009662771,1.38997064,125.29,125.24,3.24222789]
[1767009663471,0.0571806,125.28,125.24,3.24222789]
[1767009664968,5.88812149,125.28,125.24,3.24222789]
[1767009665361,9.09812149,125.28,125.24,0.05222789]
[1767009665568,5.83094089,125.27,125.22,3.19]
[1767009665964,3.2671806,125.28,125.22,3.19]
[1767009666373,0.0571806,125.28,125.22,3.19]
[1767009666575,5.88812149,125.28,125.24,0.05675486]
[1767009666779,5.88812149,125.28,125.24,3.24675486]
[1767009667071,0.0571806,125.28,125.24,3.24675486]
[1767009667668,9.8664724,125.3,125.24,3.78023524]
[1767009667878,9.8664724,125.32,125.24,3.78023524]
[1767009668070,9.8664724,125.33,125.26,3.72348038]
[1767009668265,9.8664724,125.32,125.26,98.18348038]
[1767009668571,9.8664724,125.32,125.26,105.37688038]
[1767009668778,1.38952664,125.35,125.28,3.7792226]
[1767009669075,1.38952664,125.35,125.29,7.1917]
[1767009669274,1.38952664,125.35,125.3,3.72348038]
[1767009669471,14.3978753,125.4,125.3,3.72348038]
[1767009669663,15.7869305,125.4,125.32,3.72348038]
[1767009669870,0.00109525,125.36,125.34,0.05274466]
[1767009670568,3.21,125.35,125.26,94.46]
[1767009671180,3.21,125.35,125.26,94.44]
[1767009671473,0.05273147,125.32,125.29,0.05912486]
[1767009671679,3.26273147,125.32,125.29,0.05912486]
[1767009671869,3.26273147,125.32,125.25,94.44]
[1767009672869,3.26273147,125.32,125.27,0.06095479]
[1767009674472,0.05273147,125.32,125.27,0.06095479]
[1767009674975,0.00273147,125.32,125.27,0.06095479]
[1767009675168,0.00273147,125.32,125.28,94.44]
[1767009675365,0.00273147,125.32,125.29,94.44]
[1767009675565,0.00273147,125.32,125.3,7.191]
[1767009675779,3.21,125.39,125.3,94.44]
[1767009676874,0.05380328,125.36,125.33,0.05612005]
[1767009677666,0.00380328,125.36,125.33,0.05612005]
[1767009681876,0.00380328,125.36,125.33,94.47612005]
[1767009682385,0.00380328,125.36,125.33,101.66532005]
[1767009682882,0.00380328,125.36,125.33,7.24532005]
[1767009683082,0.00380328,125.36,125.34,94.4]
[1767009686091,14.3978753,125.4,125.34,94.4]
[1767009686586,14.3978753,125.4,125.35,94.38]
[1767009686784,17.6078753,125.4,125.36,94.38]
[1767009687183,0.05300672,125.39,125.37,0.05717617]
[1767009688184,0.05300672,125.39,125.35,94.38]
[1767009688390,3.21,125.39,125.34,94.38]
[1767009689082,0.05703661,125.38,125.35,0.06002017]
[1767009689686,0.05703661,125.38,125.31,7.1904]
[1767009689888,10.3962,125.39,125.32,94.38]
[1767009690493,10.3962,125.39,125.31,7.1904]
[1767009690692,0.05688353,125.36,125.34,0.06019081]
[1767009690893,0.05688353,125.36,125.32,94.38]
[1767009691890,0.05688353,125.36,125.33,0.05365047]
[1767009693295,14.3978753,125.4,125.33,0.05365047]
[1767009693498,3.21,125.39,125.33,0.05365047]
[1767009693702,3.21,125.39,125.32,94.38]
[1767009693894,3.21,125.37,125.32,94.38]
[1767009694094,3.21,125.37,125.3,7.1909]
[1767009694601,3.21,125.36,125.3,94.38]
[1767009694793,0.05686353,125.34,125.32,0.05569504]
[1767009695194,0.05686353,125.34,125.3,94.38]
[1767009696909,3.21,125.39,125.3,94.38]
[1767009697300,14.3978753,125.4,125.29,111.8693]